Cogmind - Beta 17 @@@ ROGUE MODE // 2026.07.11 @ 12:45:31 Player: Bikerider58 Result: Destroyed by G-67 Veteran with Plasma Rifle Performance ------------- Evolutions (6) 3000 Regions Visited (22) 4400 Robots Destroyed (262) 1310 Value Destroyed (12993) 12993 Prototype IDs (14) 280 Alien Tech Used (0) 0 Bonus (12058) 12058 TOTAL SCORE: 34041 Bonus ------- High Alert Combat Kills 542 Follower Combat Kills 4277 Hunted by Unchained 500 Entered Garrisons 1400 Used RIF Installer 4500 Network Hubs Disabled 200 Built Enhanced Grunts 300 A7 Reached Mainframe 300 Met R17 at Cetus 500 Friendly Fire -461 Cogmind --------- Core Integrity 0/1150 Matter 185/300 Energy 80/100 System Corruption 1% Temperature Cool (0) Movement Walking (170) Ox1 Location -4/Garrison Parts ------- > --- POWER (2) -------- (None) > --- PROPULSION (3) --- Thunder Leg > --- UTILITY (11) ----- Advanced Terrain Scan Processor Quantum Capacitor Quantum Capacitor Quantum Capacitor Advanced Actuator Array Advanced Actuator Array Authchip [R/NC] Relay Coupler [Sentry] (1) > --- WEAPON (3) ------- (None) > --- INVENTORY (5) ---- Quantum Capacitor Relay Coupler [Heavy] (16) Peak State ------------ > --- POWER ------------ Deuterium Engine Quantum Reactor > --- PROPULSION ------- Armored Medium Treads Improved Heavy Treads > --- UTILITY ---------- High-capacity Storage Unit Improved Terrain Scanner Advanced Terrain Scan Processor Centrium Medium Armor Plating Relay Coupler [NC] Relay Coupler [C] Relay Coupler [Sentry] Relay Coupler [Specialist] Relay Coupler [Hunter] > --- WEAPON ----------- KE Penetrator Advanced KE Penetrator Improved Remote Datajack > --- INVENTORY -------- Improved Heavy Treads Centrium Heavy Treads Matter Compressor Improved Transmission Jammer Centrium Medium Armor Plating Hardlight Generator Authchip [R/NC] Relay Coupler [NC] Relay Coupler [C] Relay Coupler [Sentry] Relay Coupler [Hunter] Relay Coupler [Heavy] Relay Coupler [Behemoth] High-powered Tractor Beam Long-range Proton Cannon Advanced KE Penetrator Heavy Missile Launcher Powered Hammer [Rating: 103] Favorites ----------- Power Improved Deuterium Engine Engine Improved Deuterium Engine Power Core Light Nuclear Core Reactor Quantum Reactor Propulsion Light Treads Treads Light Treads Leg Improved Carbon-fiber Leg Wheel Wheel Flight Unit Nuclear Pulse Array Utility High-capacity Storage Unit Device Improved Hardlight Generator Storage High-capacity Storage Unit Processor Advanced Terrain Scan Processor Hackware Relay Coupler [Sentry] Protection Improved Medium Armor Plating Weapon Heavy Assault Rifle Energy Gun Gatling Laser Energy Cannon Improved EM Pulse Cannon Ballistic Gun Heavy Assault Rifle Launcher Mini Grenade Launcher Special Weapon Remote Datajack Impact Weapon Powered Hammer Slashing Weapon Chainsword Build | -11 -10 -9 -9 -8 -8 -8 -8 -8 -8 -7 -7 -7 -7 -6 -6 -6 -6 -6 -6 -5 -4 -4 ------- Run | Yrd Mat Mat Min Mat Gar Mat Gar Mat Gar Fac Gar Fac Gar Fac Ext Cet Arc Hub Gar Fac Fac Gar Slots Evolved 12 | . . 2 . 2 . . . . . 2 . . . 2 . . . . . 2 2 . Power 1 | . . . . . . . . . . . . . . . . . . . . 1 . . Propulsion 1 | . . 1 . . . . . . . . . . . . . . . . . . . . Utility 9 | . . . . 2 . . . . . 2 . . . 2 . . . . . 1 2 . Weapon 1 | . . 1 . . . . . . . . . . . . . . . . . . . . Parts Attached 199 | 7 4 17 1 4 13 9 17 . 18 18 15 4 7 1 11 7 3 . 10 15 10 8 Power 19 | 1 . 3 . . . 2 3 . 1 3 2 . . . 1 . . . 1 1 1 . Engine 10 | 1 . 3 . . . . . . 1 2 1 . . . 1 . . . 1 . . . Core 8 | . . . . . . 2 3 . . 1 1 . . . . . . . . . 1 . Reactor 1 | . . . . . . . . . . . . . . . . . . . . 1 . . Propulsion 50 | 2 1 4 . 1 6 3 4 . 5 7 3 . . . 2 1 1 . 1 3 4 2 Treads 37 | 2 1 3 . 1 6 3 4 . 5 3 2 . . . 2 1 1 . 1 2 . . Leg 9 | . . 1 . . . . . . . 2 1 . . . . . . . . . 3 2 Wheel 2 | . . . . . . . . . . 2 . . . . . . . . . . . . Hover . | . . . . . . . . . . . . . . . . . . . . . . . Flight 2 | . . . . . . . . . . . . . . . . . . . . 1 1 . Utility 72 | 2 2 4 . 3 3 1 4 . 6 6 5 2 5 1 4 3 . . 5 9 2 5 Device 17 | 1 1 . . 1 . . 1 . . 1 1 1 . . . . . . 1 3 1 5 Storage 4 | 1 1 1 . . . . . . . . . . . . 1 . . . . . . . Processor 5 | . . . . 2 . . . . . 1 . . . . . . . . . 1 1 . Hackware 26 | . . . . . . . 1 . 3 3 2 1 5 1 1 1 . . 4 4 . . Protection 20 | . . 3 . . 3 1 2 . 3 1 2 . . . 2 2 . . . 1 . . Artifact . | . . . . . . . . . . . . . . . . . . . . . . . Weapon 58 | 2 1 6 1 . 4 3 6 . 6 2 5 2 2 . 4 3 2 . 3 2 3 1 Energy Gun 5 | . . 1 . . . . 2 . . . . . . . . 1 . . . . . 1 Energy Cannon 2 | . . 1 . . . . . . . . . . . . 1 . . . . . . . Ballistic Gun 40 | 2 1 4 1 . 3 2 3 . 4 1 4 1 2 . 3 2 2 . 2 . 3 . Ballistic Cannon . | . . . . . . . . . . . . . . . . . . . . . . . Launcher 2 | . . . . . . 1 . . . . 1 . . . . . . . . . . . Special Weapon 5 | . . . . . . . 1 . 1 . . 1 . . . . . . 1 1 . . Impact Weapon 3 | . . . . . 1 . . . . 1 . . . . . . . . . 1 . . Slashing Weapon 1 | . . . . . . . . . 1 . . . . . . . . . . . . . Piercing Weapon . | . . . . . . . . . . . . . . . . . . . . . . . Special Melee Weapon . | . . . . . . . . . . . . . . . . . . . . . . . Unidentified Prototypes 6 | . . 1 . . . 1 . . . . . . . . . 4 . . . . . . Corrupted Parts 1 | . . . . . . . . . . . . . . . . 1 . . . . . . System Corruption 8 | . . . . . . . . . . . . . . . . 8 . . . . . . Parts Lost 73 | . 3 . . . 8 4 13 . 4 3 4 . . . . 1 . . . 19 10 4 Power 6 | . 1 . . . . . 2 . . 1 . . . . . . . . . 1 1 . Propulsion 24 | . 1 . . . 4 1 4 . 3 1 1 . . . . . . . . 3 5 1 Utility 20 | . . . . . 2 1 3 . 1 . . . . . . 1 . . . 11 1 . Weapon 23 | . 1 . . . 2 2 4 . . 1 3 . . . . . . . . 4 3 3 Highest Loss Streak 14 | . 2 . . . 3 1 6 . 1 3 1 . . . . 1 . . . 14 5 5 To Critical Strikes . | . . . . . . . . . . . . . . . . . . . . . . . Average Backups 17 | . 5 17 19 19 18 19 19 19 19 19 19 17 17 17 18 18 18 18 17 16 3 3 Power . | . . . 1 1 1 1 . . . . 1 . . . . . 1 1 1 . . . Propulsion 2 | . 1 5 6 6 4 2 1 . . . 1 2 2 2 1 1 2 2 2 1 1 1 Utility 10 | . 2 7 8 6 7 11 11 15 14 14 14 11 10 9 11 10 10 10 10 10 1 1 Weapon 4 | . 1 4 4 5 5 3 4 3 3 3 2 3 4 5 5 4 4 4 3 3 . . Tool/Special . | . . . . . . . . . . . . . . . . . . . . . . . Unused Backups 62 | . . 11 . . 8 7 1 . 4 7 5 3 2 . . 2 . . 5 4 1 2 Power 1 | . . . . . . . . . . . . 1 . . . . . . . . . . Propulsion 12 | . . 6 . . 4 . . . . 1 . . . . . . . . . . 1 . Utility 41 | . . 2 . . 4 5 1 . 4 5 5 1 2 . . 2 . . 5 3 . 2 Weapon 8 | . . 3 . . . 2 . . . 1 . 1 . . . . . . . 1 . . Tool/Special . | . . . . . . . . . . . . . . . . . . . . . . . Average Slot Usage (%) 94 | . 96 95 100 99 99 99 98 100 98 99 96 91 91 92 92 91 93 93 92 83 35 34 Engine 6 | . 12 8 11 9 9 4 1 9 9 4 5 7 7 6 6 6 6 6 5 4 . . Core 1 | . . . . . . 4 7 . . 2 1 . . . . . . . . . 1 . Treads 17 | . 26 31 33 27 26 27 26 27 26 15 9 7 7 6 8 13 13 13 13 10 . . Leg 1 | . . . . . . . . . . 1 9 7 7 6 3 . . . . . 1 3 Device 3 | . 14 . . 8 . 2 . 9 . 2 4 6 4 9 6 6 6 6 . 4 3 14 Storage 7 | . 14 11 11 9 9 9 9 9 9 7 7 7 7 6 6 6 6 6 6 4 . . Processor 7 | . . . . 9 18 18 16 9 . 3 7 7 7 6 6 6 6 6 6 4 4 5 Hackware 15 | . . . . . . . 1 . 17 26 18 23 25 29 26 23 20 20 30 25 10 10 Protection 6 | . . 10 11 9 8 6 7 9 8 4 6 . . . 5 8 13 13 6 4 . . Ballistic Gun 18 | . 27 31 33 27 25 26 21 9 8 13 20 16 18 7 14 19 20 20 9 5 5 . Special Weapon 1 | . . . . . . . 1 . 6 4 . . 1 4 1 . . . 5 4 1 . Impact Weapon 1 | . . . . . 1 . 2 . 3 1 2 5 1 6 1 . . . 3 3 1 . Peak Build Rating 103 | 7 7 24 24 29 29 27 29 29 34 47 64 64 64 69 71 86 88 88 89 103 48 88 Average Rating 47 | 5 6 19 24 28 26 24 26 29 31 41 56 62 62 68 69 77 87 88 82 88 35 55 On Entrance 42 | . 7 6 24 24 29 23 27 29 29 34 47 64 64 60 68 67 83 88 88 85 28 14 Avg Prop Armor Cover (%) 5 | . . 4 . . . . . . . 7 4 5 5 5 3 . . . . 39 . . Naked Turns 17 | . . . . . . . . . . . . . . . . . . . . 17 . . Heaviest Build 99 | 14 29 60 60 61 60 61 65 65 76 80 76 70 73 70 79 97 99 99 99 93 16 38 Greatest Support 103 | 40 40 66 66 66 66 60 60 60 60 60 75 75 75 75 95 100 103 103 103 102 69 23 Greatest Overweight (x) 12 | . 1 . . . 1 1 1 1 1 5 6 . . . 1 . . . . . . 12 Average Overweight (x) . | . . . . . . . . 1 . 1 . . . . . . . . . . . . Largest Inventory Capacity 20 | 8 15 20 20 20 20 20 20 20 20 20 20 20 20 20 20 20 20 20 20 20 5 5 Average Capacity 19 | 7 12 19 20 20 20 20 20 20 20 20 20 20 20 20 20 20 20 20 20 18 5 5 Most Carried 20 | 3 7 20 20 20 20 20 20 19 20 20 20 20 20 20 20 20 20 20 20 20 5 5 Average Carried 18 | . 5 17 19 19 17 19 18 19 19 19 19 19 19 19 19 19 20 20 19 17 4 4 Final Capacity 20 | 8 15 20 20 20 20 20 20 20 20 20 20 20 20 20 20 20 20 20 20 5 5 5 Final Carried 20 | 2 6 20 20 20 20 20 19 19 20 20 20 20 20 20 20 20 20 20 20 5 5 3 Class Distribution -------------------- 23% | Botlord-Tank 19% | Botlord-Mutant 12% | Scavenger-Gunner 10% | Tank 7% | Scavenger-Mutant 6% | Mutant 4% | Bothacker-Mutant 4% | Scavenger-Tank 4% | Gunner Dominant Class ---------------- Mutant | -10/Materials Tank | -9/Materials Tank | -9/Mines Scavenger-Gunner | -8/Materials Gunner | -8/Garrison Scavenger-Gunner | -8/Materials Scavenger-Gunner | -8/Garrison Bothacker-Gunner | -8/Materials Bothacker-Mutant | -8/Garrison Botlord-Tank | -7/Factory Scavenger-Tank | -7/Garrison Scavenger-Mutant | -7/Factory Botlord-Tank | -7/Garrison Botlord-Mutant | -6/Factory Botlord-Tank | -6/Extension Botlord-Tank | -6/Cetus Botlord-Tank | -6/Archives Botlord-Tank | -6/Hub_04(d) Botlord-Mutant | -6/Garrison Botlord-Mutant | -5/Factory Mutant | -4/Factory Mutant | -4/Garrison Resources | -11 -10 -9 -9 -8 -8 -8 -8 -8 -8 -7 -7 -7 -7 -6 -6 -6 -6 -6 -6 -5 -4 -4 ----------- Run | Yrd Mat Mat Min Mat Gar Mat Gar Mat Gar Fac Gar Fac Gar Fac Ext Cet Arc Hub Gar Fac Fac Gar Matter Collected 10301 | 279 274 909 87 . 901 641 997 . 490 574 1312 48 715 85 659 311 547 8 748 510 206 . Remotely 126 | . . . . . . . . . . . . . . . . . . . 126 . . . Salvage Created 10883 | 114 508 1221 203 . 1334 804 1028 . 626 774 1109 96 484 270 598 104 468 . 448 422 272 . Parts 556 | 5 31 85 18 . 72 39 65 . 39 48 52 5 24 4 22 . 22 . 15 5 5 . Haulers Intercepted 7 | . . . . . . 1 . . . 3 . 2 . . . . . . . . 1 . Recyclers Shooed 7 | 1 . 2 . . . . . . . . . . . 2 . . . . . 2 . . Parts Field Recycled . | . . . . . . . . . . . . . . . . . . . . . . . Retrieved Matter . | . . . . . . . . . . . . . . . . . . . . . . . Parts Self-Destructed . | . . . . . . . . . . . . . . . . . . . . . . . Prevented . | . . . . . . . . . . . . . . . . . . . . . . . Parts Restored . | . . . . . . . . . . . . . . . . . . . . . . . Kills | -11 -10 -9 -9 -8 -8 -8 -8 -8 -8 -7 -7 -7 -7 -6 -6 -6 -6 -6 -6 -5 -4 -4 ------- Run | Yrd Mat Mat Min Mat Gar Mat Gar Mat Gar Fac Gar Fac Gar Fac Ext Cet Arc Hub Gar Fac Fac Gar Combat Hostiles Destroyed 208 | . 14 23 3 . 25 15 29 . 20 17 17 . 19 . 7 2 1 . 6 5 5 . Melee 7 | . . . . . . . . . 2 4 . . . . 1 . . . . . . . Guns 153 | . 14 23 3 . 25 14 19 . 9 7 14 . 11 . 5 2 1 . 4 1 1 . AOE 46 | . . . . . . 1 10 . 9 6 3 . 8 . . . . . 2 4 3 . Classes Destroyed 18 | 2 2 5 . . 3 2 1 . . 1 . . 1 . 1 . . . . . . . Worker 8 | . . 2 . . . 1 . . . 3 . . . . 1 . . . . . 1 . Builder 3 | . . 1 . . . . . . . . . . . . 2 . . . . . . . Tunneler 8 | 1 . . 3 . . 2 . . . . . 1 . . 1 . . . . . . . Hauler 7 | . . . . . . 1 . . . 3 . 2 . . . . . . . . 1 . Recycler 7 | 1 . 2 . . . . . . . . . . . 2 1 . . . . 1 . . Mechanic 1 | . . . . . . . . . . 1 . . . . . . . . . . . . Operator 11 | . . 1 . . . . . . . . . . . . . . 9 . . 1 . . Watcher 5 | . . 3 . . . . . . . 1 . . . . 1 . . . . . . . Swarmer 40 | . 3 3 . . . 2 7 . 4 4 4 . 9 . . . . . 2 . 2 . Cutter 4 | . . . . . 2 . 2 . . . . . . . . . . . . . . . Grunt 90 | . 11 12 3 . 13 7 11 . 3 7 5 . 9 . 2 . . . . 5 2 . Brawler 4 | . . . . . . . 1 . 1 1 . . . . 1 . . . . . . . Duelist 7 | . . . . . 2 . 3 . . . 1 . . . . . . . 1 . . . Sentry 38 | . . 8 . . 5 4 4 . 3 2 7 . . . 2 . 1 . 2 . . . Specialist 3 | . . . . . . . . . . . . . 1 . . . . . 2 . . . Hunter 4 | . . . . . . 2 . . 1 . . . . . 1 . . . . . . . Programmer 17 | . . . . . 3 . 2 . 8 3 . . . . . . . . . . 1 . Behemoth 1 | . . . . . . . . . . . . . . . 1 . . . . . . . Cetus Guard 2 | . . . . . . . . . . . . . . . . 2 . . . . . . Thug 2 | . . . . . . . . . . . . . . . . . 2 . . . . . Best Kill Streak 8 | 1 3 5 3 . 5 4 8 . 4 5 3 1 4 1 4 1 6 . 2 4 4 . Combat Bots Only 8 | . 3 4 3 . 5 4 8 . 4 4 3 . 4 . 3 1 1 . 2 4 3 . Max Kills in Single Turn 5 | 1 1 3 1 . 1 2 5 . 4 5 2 1 2 1 2 1 2 . 2 3 3 . Gunslinging 1 | . . 1 . . . . . . . . 1 . . . . . . . . . . . Exploded 5 | . . . . . . 1 5 . 4 2 2 . 2 . . . . . 2 3 3 . Melee 1 | . . . . . . . . . 1 1 . . . . 1 . . . . . . . Uniques/NPCs Destroyed . | . . . . . . . . . . . . . . . . . . . . . . . Combat | -11 -10 -9 -9 -8 -8 -8 -8 -8 -8 -7 -7 -7 -7 -6 -6 -6 -6 -6 -6 -5 -4 -4 -------- Run | Yrd Mat Mat Min Mat Gar Mat Gar Mat Gar Fac Gar Fac Gar Fac Ext Cet Arc Hub Gar Fac Fac Gar Hostile Shots Fired 1643 | . 104 79 5 . 138 69 133 . 102 118 214 . 82 . 130 11 4 37 30 172 153 62 Missed 529 | . 25 14 1 . 40 20 33 . 27 38 73 . 30 . 46 2 3 4 12 69 70 22 Hits 1114 | . 79 65 4 . 98 49 100 . 75 80 141 . 52 . 84 9 1 33 18 103 83 40 Melee 33 | . . . . . 3 . 21 . . . . . . . . . . . . 8 . 1 Projectile 1081 | . 79 65 4 . 95 49 79 . 75 80 141 . 52 . 84 9 1 33 18 95 83 39 AOE 5 | . . . . . 2 . 2 . . . . . . . . . . . . . 1 . Critical Strikes 41 | . . 3 . . 6 1 7 . 6 1 1 . . . . 4 1 1 1 6 3 . Part Disruptions 5 | . . . . . . . . . 1 . . . . . . . . 1 2 . 1 . Damage Taken 18275 | . 824 799 62 . 1614 805 1818 . 1191 886 1102 . 613 27 619 169 21 156 325 4523 1841 880 Core 3241 | . 224 75 . . 242 45 112 . 128 73 164 . 47 18 57 14 . 5 33 835 813 356 Absorbed by Shields 1360 | . . . . . . . 6 . . . 211 . 286 . 345 119 12 112 . 269 . . Ignored by Resistances 205 | . . . . . . . . . 15 135 . . . . . . 16 39 . . . . Regen/Repaired (Parts) 279 | . . 214 . . . . . . . 65 . . . . . . . . . . . . Core Remaining (%) 50 | 100 10 . 81 . . . . . 4 . . . 59 . . . . . 85 16 . . Volleys Fired 793 | 7 78 58 9 . 81 49 83 . 59 41 68 2 41 5 46 16 40 2 54 37 12 5 Largest 3 | 2 2 3 3 . 3 3 3 . 3 3 3 1 3 1 3 3 3 3 3 3 3 1 Hottest 240 | 40 40 69 69 . 69 76 103 . 145 76 84 5 84 5 86 240 96 96 101 103 69 81 Shots Fired 1764 | 14 155 174 27 . 229 147 191 . 75 75 166 3 78 5 106 40 117 6 75 48 28 5 Gun 1619 | 14 155 174 27 . 229 146 172 . 56 62 164 1 61 . 91 40 117 6 57 21 25 1 Cannon 10 | . . . . . . . . . . . . . . . 10 . . . . . . . Launcher 30 | . . . . . . 1 7 . 9 2 2 . 5 . . . . . 1 3 . . Special 105 | . . . . . . . 12 . 10 11 . 2 12 5 5 . . . 17 24 3 4 Kinetic 1583 | 14 155 174 27 . 229 146 168 . 26 62 164 1 61 . 91 39 117 6 57 21 25 . Thermal 36 | . . . . . . . 4 . 30 . . . . . . 1 . . . . . 1 Explosive 30 | . . . . . . 1 7 . 9 2 2 . 5 . . . . . 1 3 . . Electromagnetic 10 | . . . . . . . . . . . . . . . 10 . . . . . . . Robot Hit Streak 32 | 3 8 15 17 . 19 32 14 . 12 11 21 4 7 2 19 12 12 9 14 15 6 2 Robot Miss Streak 7 | 2 4 4 1 . 4 5 3 . 2 2 6 1 4 1 7 2 6 . 3 3 1 1 Penetration Max 1 | . . . . . . . . . 1 . 1 . 1 . 1 1 1 . 1 1 . . Secondary Targets 28 | . . 3 . . 8 1 5 . . 1 5 . 3 . 2 . . . . . . . Max Gunslinging Chain 1 | . . 1 . . 1 1 1 . . 1 1 . 1 . 1 . . . . . . . Shots Hit Robots 1259 | 10 97 123 17 . 151 96 131 . 64 77 136 4 51 6 91 29 65 6 44 35 23 3 Core Hits 639 | 4 33 56 8 . 64 42 58 . 44 34 100 1 43 1 68 8 33 1 14 18 8 1 Critical Kills 4 | . . . . . 1 . . . . . . . . . 1 . 2 . . . . . Critical Parts Destroyed 20 | . . . . . 1 1 . . 1 2 2 1 . 1 . . 1 1 4 4 1 . Critical Strikes 32 | . . . . . 2 1 . . 3 3 2 1 . 1 1 2 4 1 5 5 1 . Destroy 24 | . . . . . 2 1 . . 1 1 2 . . . 1 2 4 1 5 4 . . Smash 5 | . . . . . . . . . . 1 . 1 . 1 . . . . . 1 1 . Sever 3 | . . . . . . . . . 2 1 . . . . . . . . . . . . Melee Attacks 153 | . . . . . 12 . 16 . 21 45 2 5 15 4 3 . . . 10 11 9 . Impact 113 | . . . . . 12 . 16 . 9 17 2 5 15 4 3 . . . 10 11 9 . Slashing 40 | . . . . . . . . . 12 28 . . . . . . . . . . . . Piercing . | . . . . . . . . . . . . . . . . . . . . . . . Sneak Attacks 21 | . . . . . . . . . 5 3 . 3 . 2 3 . . . 1 2 2 . Combat Hostiles 4 | . . . . . . . . . 4 . . . . . . . . . . . . . Follow-up Attacks . | . . . . . . . . . . . . . . . . . . . . . . . Damage Inflicted 28709 | 101 905 1875 269 . 2387 1498 2611 . 2213 3247 2940 284 1675 201 2194 574 1608 155 1094 1599 1251 28 Guns 19381 | 101 905 1760 269 . 2387 1406 1860 . 824 805 2637 20 749 . 1776 574 1608 141 808 524 202 25 Cannons 189 | . . . . . . . . . . . . . . . 189 . . . . . . . Explosions 5879 | . . . . . . 76 751 . 858 1348 303 . 926 . . . . . 220 777 620 . Melee 3024 | . . . . . . . . . 531 1072 . 264 . 201 198 . . . 66 263 429 . Ramming 236 | . . 115 . . . 16 . . . 22 . . . . 31 . . 14 . 35 . 3 Kinetic 18693 | 101 905 1760 269 . 2387 1406 1798 . 223 805 2637 20 749 . 1776 574 1608 141 808 524 202 . Thermal 2331 | . . . . . . . 62 . 601 1023 . . . . . . . . . . 620 25 Explosive 4236 | . . . . . . 76 751 . 858 325 303 . 926 . . . . . 220 777 . . Electromagnetic 189 | . . . . . . . . . . . . . . . 189 . . . . . . . Impact 2068 | . . . . . . . . . 116 531 . 264 . 201 198 . . . 66 263 429 . Slashing 956 | . . . . . . . . . 415 541 . . . . . . . . . . . . Piercing . | . . . . . . . . . . . . . . . . . . . . . . . Highest Corruption 44 | . 1 . . . 1 2 26 26 34 3 3 3 . . 2 10 10 11 11 44 1 1 Average Corruption 8 | . 1 . . . 1 1 9 26 29 2 3 2 . . 2 4 10 10 11 26 1 1 Corruption Purged 3 | . . . . . . . . . . . . 3 . . . . . . . . . . Corruption Blocked . | . . . . . . . . . . . . . . . . . . . . . . . Effects 290 | . 3 . . . 1 8 66 1 66 7 22 5 . . 12 9 21 3 57 8 . 1 Message Errors 59 | . . . . . . . 11 . 18 . 7 1 . . 1 3 3 . 13 2 . . Matter Fused 73 | . . . . . . 3 13 . 15 4 5 2 . . 5 1 4 1 18 2 . . Heat Flow Errors 30 | . . . . . . . 10 . 1 . 4 1 . . 2 1 2 . 8 . . 1 Energy Discharges 44 | . 1 . . . 1 1 10 1 12 . 3 . . . 1 2 3 . 9 . . . Parts Rejected 4 | . . . . . . 1 . . 1 . . . . . . . . . 1 1 . . Parts Fused 4 | . 1 . . . . 1 1 . 1 . . . . . . . . . . . . . Data Loss (minor) 34 | . 1 . . . . 2 10 . 6 1 1 . . . 1 1 5 1 3 2 . . Data Loss (major) 9 | . . . . . . . 1 . 3 1 . . . . 1 . 1 1 1 . . . Misfires 18 | . . . . . . . 6 . 6 1 1 1 . . 1 . . . 2 . . . Alerts 4 | . . . . . . . 2 . 2 . . . . . . . . . . . . . Misdirections 3 | . . . . . . . . . . . . . . . . 1 . . 1 1 . . Weapon Failures 8 | . . . . . . . 2 . 1 . 1 . . . . . 3 . 1 . . . Overload Shots 1 | . . . . . . . . . . . . . . . . 1 . . . . . . Overflow Damage 1295 | . . 5 . . . . 71 . 7 314 2 138 . 49 81 . . . 15 155 458 . Projectiles 15 | . . . . . . . . . . . . . . . 15 . . . . . . . Explosions 613 | . . . . . . . 71 . . 208 2 . . . . . . . 15 19 298 . Melee 667 | . . 5 . . . . . . 7 106 . 138 . 49 66 . . . . 136 160 . Knockbacks 6 | . . 1 . . . 1 . . . . . . . . 1 . . . 1 1 1 . Impact 6 | . . 1 . . . 1 . . . . . . . . 1 . . . 1 1 1 . Kinetic . | . . . . . . . . . . . . . . . . . . . . . . . Secondary . | . . . . . . . . . . . . . . . . . . . . . . . Self-Inflicted Damage 277 | . . . . . . . 22 . 53 . . . 63 . . . . . . . 139 . Shots 6 | . . . . . . . 1 . 2 . . . 1 . . . . . . . 2 . Rammed 26 | 1 . 14 . . . 5 . . . 1 . . . . 2 . . 2 . 1 . . Targets Rammed 29 | 1 . 16 . . . 5 . . . 1 . . . . 2 . . 2 . 1 . 1 Kicked 1 | . . . . . . . . . . . . . . . . . . . . . . 1 Crushed 2 | . . 2 . . . . . . . . . . . . . . . . . . . . Highest Temperature 274 | . 18 72 24 . 119 48 242 . 240 33 274 114 17 . 168 242 115 68 230 147 6 200 Average Temperature 42 | . 8 22 6 . 34 11 59 . 66 21 52 63 5 . 26 79 34 38 68 66 5 92 Received Heat Transfer 4379 | . 351 399 36 . 648 198 549 . 189 243 371 . 92 . 105 . . 20 96 626 225 231 Siege Activations 1 | . . . . . . . . . . . . . . . . . . . 1 . . . Total Turns 4 | . . . . . . . . . . . . . . . . . . . 4 . . . Longest Duration 4 | . . . . . . . . . . . . . . . . . . . 4 . . . Martial Activations . | . . . . . . . . . . . . . . . . . . . . . . . Shielding Activations . | . . . . . . . . . . . . . . . . . . . . . . . Robots Disrupted . | . . . . . . . . . . . . . . . . . . . . . . . Combat Hostiles . | . . . . . . . . . . . . . . . . . . . . . . . Robots Corrupted 12 | . . 1 . . . . . . . 3 . 2 . 1 2 . . . . 1 2 . Combat Hostiles 2 | . . . . . . . . . . . . . . . 1 . . . . . 1 . Parts Fried 25 | . . 1 . . . . . . . 2 . 3 . 3 7 . . . . 5 4 . Impact Corruptions 25 | . . 1 . . . . . . 1 7 . 2 . 2 3 . . . . 5 4 . Robots Melted . | . . . . . . . . . . . . . . . . . . . . . . . Combat Hostiles . | . . . . . . . . . . . . . . . . . . . . . . . Parts Melted 4 | . . . . . . . . . 3 . . . . . 1 . . . . . . . Heat Transferred 2216 | . . . . . . . 137 . 1162 600 . . . . . . . . . . 300 17 Parts Sabotaged . | . . . . . . . . . . . . . . . . . . . . . . . Parts Stolen . | . . . . . . . . . . . . . . . . . . . . . . . Parts Stripped . | . . . . . . . . . . . . . . . . . . . . . . . Power Chain Reactions . | . . . . . . . . . . . . . . . . . . . . . . . Alert | -11 -10 -9 -9 -8 -8 -8 -8 -8 -8 -7 -7 -7 -7 -6 -6 -6 -6 -6 -6 -5 -4 -4 ------- Run | Yrd Mat Mat Min Mat Gar Mat Gar Mat Gar Fac Gar Fac Gar Fac Ext Cet Arc Hub Gar Fac Fac Gar Maximum Alert Level 3 | . 1 1 . . 2 1 3 1 2 1 3 2 3 2 2 1 1 . 3 3 1 . Low Security (%) 35 | 100 85 77 100 100 16 11 18 . . 55 . . 3 72 75 . 56 100 19 20 65 100 Level 1 32 | . 14 22 . . 57 88 5 100 57 44 43 85 29 4 10 100 43 . 4 17 34 . Level 2 25 | . . . . . 25 . 60 . 42 . 48 14 56 23 14 . . . 30 56 . . Level 3 6 | . . . . . . . 15 . . . 7 . 11 . . . . . 45 6 . . Level 4 . | . . . . . . . . . . . . . . . . . . . . . . . Level 5 . | . . . . . . . . . . . . . . . . . . . . . . . High Security . | . . . . . . . . . . . . . . . . . . . . . . . Max Security . | . . . . . . . . . . . . . . . . . . . . . . . Peak Influence 1088 | 5 228 343 185 11 641 324 795 387 630 361 804 422 827 434 575 389 252 132 1088 738 283 195 Initial 571 | . . 89 125 11 . 312 135 387 245 330 250 422 186 434 7 305 122 37 85 571 44 181 Average 328 | . 108 144 111 4 313 257 492 384 396 201 497 348 509 158 132 345 187 75 639 439 121 183 Influence Increases 10075 | 10 466 784 85 14 721 442 810 . 605 626 674 70 741 198 1008 262 259 125 1103 603 445 24 Destroy 0b10 Robot/C 4695 | . 280 460 60 . 500 300 470 . 330 255 375 30 345 60 420 120 60 30 375 105 120 . Destroy 0b10 Robot/NC 280 | 10 . 45 15 . 10 20 . . . 32 16 12 . 20 36 . 36 4 4 12 8 . Destroy Leader 670 | . 50 146 10 . 30 92 24 . 40 70 16 12 16 8 66 . . 8 32 32 18 . Allied During Kill 1212 | . . . . . . . 3 . 27 . 65 5 28 41 356 120 96 42 335 85 9 . Successful Hack 166 | . 30 26 . 14 . 14 . . 11 4 11 9 6 3 29 . . . . 9 . . Select Force Hacks 181 | . 60 60 . . . . . . . 23 . . . . . . . 38 . . . . Disable Machine 507 | . . 15 . . . . . . . 192 . . . 24 48 12 60 . 60 24 72 . Anti-Garrison Action 1396 | . . . . . 150 . 264 . 151 . 151 . 227 . . . . . 227 226 . . Destroy Structure 569 | . 1 2 . . 31 16 37 . 46 38 40 2 59 42 17 10 7 3 58 74 86 . Partial Spotted 24 | . . . . . . . . . . . . . . . . . . . . 12 12 . Lose Combat Pursuer 375 | . 45 30 . . . . 12 . . 12 . . 60 . 36 . . . 12 24 120 24 Influence Decreases 9930 | 10 254 673 378 44 80 875 223 418 352 898 228 608 180 1008 478 502 459 110 137 1600 277 138 Entered New Map 3731 | . . 123 198 19 . 329 73 408 132 300 108 382 80 393 10 242 185 70 37 517 47 78 Time Decay 3607 | 10 224 550 180 25 . 356 . 10 . 568 . 206 . 160 356 190 254 40 . 368 110 . Lost Part 730 | . 30 . . . 80 40 130 . 40 30 40 . . . . 10 . . . 190 100 40 Lost Ally 1062 | . . . . . . . 20 . 180 . 80 20 100 80 112 60 20 . 100 250 20 20 Purge Threat 800 | . . . . . . 150 . . . . . . . 375 . . . . . 275 . . Squads Dispatched 40 | . 3 3 . . . 2 . . . 4 . . . 3 6 . . 3 . 11 5 . Investigation 13 | . 3 2 . . . 1 . . . 1 . . . 1 3 . . 1 . 1 . . Extermination 3 | . . . . . . . . . . 2 . . . . . . . . . 1 . . Reinforcement 15 | . . 1 . . . 1 . . . 1 . . . 1 3 . . 1 . 3 4 . Assault 4 | . . . . . . . . . . . . . . . . . . . . 4 . . Garrison 5 | . . . . . . . . . . . . . . 1 . . . 1 . 2 1 . Intercept . | . . . . . . . . . . . . . . . . . . . . . . . Searches Triggered . | . . . . . . . . . . . . . . . . . . . . . . . Unchained Authorized 1 | . . . . . . . . . . . . . . . . . . . . 1 . . Construction Impeded 3 | . . . . . . . . . . . . . . . 2 . . . . 1 . . Haulers Reinforced 2 | . . . . . . . . . . . . . . . . . . . . . 2 . Active Scanning Responses . | . . . . . . . . . . . . . . . . . . . . . . . Cargo Convoy Interrupts . | . . . . . . . . . . . . . . . . . . . . . . . Alert ID Control Effect 35 | . . . . . . . . . 3 . . . . 6 1 . . . 7 13 5 . Stealth | -11 -10 -9 -9 -8 -8 -8 -8 -8 -8 -7 -7 -7 -7 -6 -6 -6 -6 -6 -6 -5 -4 -4 --------- Run | Yrd Mat Mat Min Mat Gar Mat Gar Mat Gar Fac Gar Fac Gar Fac Ext Cet Arc Hub Gar Fac Fac Gar Distress Signals 19 | . 2 5 . . . 1 . . . 2 . . 3 . 2 . . . . 2 2 . Communications Jammed . | . . . . . . . . . . . . . . . . . . . . . . . Distress Signals . | . . . . . . . . . . . . . . . . . . . . . . . Times Spotted 477 | . 26 39 3 . 24 22 30 . 24 23 22 2 40 4 30 11 23 5 32 78 30 9 Peak Tracking Total 24 | . 6 5 3 . 5 5 8 . 5 4 8 2 15 2 6 5 2 3 7 24 13 5 Tactical Retreats 21 | . 2 2 . . . . 1 . . 1 . . 3 . 3 . . . 1 4 3 1 Traps | -11 -10 -9 -9 -8 -8 -8 -8 -8 -8 -7 -7 -7 -7 -6 -6 -6 -6 -6 -6 -5 -4 -4 ------- Run | Yrd Mat Mat Min Mat Gar Mat Gar Mat Gar Fac Gar Fac Gar Fac Ext Cet Arc Hub Gar Fac Fac Gar Traps Triggered 32 | . . . . . 2 2 9 . 6 2 3 . . . 1 . . . 2 3 . 2 Indirectly . | . . . . . . . . . . . . . . . . . . . . . . . Trap Hack Attempts . | . . . . . . . . . . . . . . . . . . . . . . . Triggered . | . . . . . . . . . . . . . . . . . . . . . . . Disarmed . | . . . . . . . . . . . . . . . . . . . . . . . Reprogrammed . | . . . . . . . . . . . . . . . . . . . . . . . Reused . | . . . . . . . . . . . . . . . . . . . . . . . Traps Extracted . | . . . . . . . . . . . . . . . . . . . . . . . Installed . | . . . . . . . . . . . . . . . . . . . . . . . Triggered . | . . . . . . . . . . . . . . . . . . . . . . . Machines | -11 -10 -9 -9 -8 -8 -8 -8 -8 -8 -7 -7 -7 -7 -6 -6 -6 -6 -6 -6 -5 -4 -4 ---------- Run | Yrd Mat Mat Min Mat Gar Mat Gar Mat Gar Fac Gar Fac Gar Fac Ext Cet Arc Hub Gar Fac Fac Gar Machines Disabled 61 | . . 2 . . 1 . 2 . 1 16 2 . 4 2 6 1 5 . 9 4 6 . Max in Single Turn 14 | . . 1 . . 1 . 1 . 1 14 1 . 1 . 1 1 1 . 1 1 5 . Garrison Access 2 | . . . . . . . . . . . . . . . . . . . . 2 . . Garrison Relay 14 | . . . . . 1 . 2 . 1 . 2 . 4 . . . . . 4 . . . Network Hub 1 | . . . . . . . . . . . . . . . . . . 1 . . . . Machines Repaired . | . . . . . . . . . . . . . . . . . . . . . . . Machines Dismantled . | . . . . . . . . . . . . . . . . . . . . . . . Machines Sabotaged 1 | . . . . . . . . . . . . . . . . . . 1 . . . . Overloaded Fab Kills . | . . . . . . . . . . . . . . . . . . . . . . . Hacking | -11 -10 -9 -9 -8 -8 -8 -8 -8 -8 -7 -7 -7 -7 -6 -6 -6 -6 -6 -6 -5 -4 -4 --------- Run | Yrd Mat Mat Min Mat Gar Mat Gar Mat Gar Fac Gar Fac Gar Fac Ext Cet Arc Hub Gar Fac Fac Gar Machines Accessed 78 | . 4 10 . 3 2 5 3 1 1 10 2 4 2 3 13 . . 2 2 7 4 . Terminals 54 | . 2 6 . 2 2 4 3 . 1 6 2 . 2 2 13 . . 1 2 5 1 . Fabricators 3 | . . . . . . . . . . 1 . 1 . . . . . . . . 1 . Repair Stations 4 | . . 1 . . . . . . . 1 . . . 1 . . . . . 1 . . Recycling Units 4 | . 2 1 . . . . . . . . . . . . . . . . . . 1 . Scanalyzers 5 | . . 2 . . . . . . . 1 . 2 . . . . . . . . . . Garrison Access 8 | . . . . 1 . 1 . 1 . 1 . 1 . . . . . 1 . 1 1 . Total Hacks 181 | . 11 35 . 7 4 12 6 1 2 23 3 8 3 6 23 . . 4 3 17 13 . Successful 71 | . 4 21 . 4 . 4 . 1 1 10 1 4 1 1 8 . . 2 . 3 6 . Failed 108 | . 7 13 . 3 4 8 6 . 1 12 2 4 2 5 15 . . 2 3 14 7 . Catastrophic 17 | . 2 1 . . 1 . 1 . 1 4 . . . 1 4 . . . 1 1 . . Database Lockouts 2 | . . 1 . . . . . . . 1 . . . . . . . . . . . . Manual 55 | . 6 7 . 3 . 4 . . . 5 . 1 . 4 7 1 . 3 . 7 7 . Terminals 117 | . 8 16 . 5 4 11 6 . 2 8 3 . 3 3 23 . . 3 3 13 6 . Fabricators 10 | . . . . . . . . . . 5 . 2 . . . . . . . . 3 . Repair Stations 15 | . . 5 . . . . . . . 4 . . . 3 . . . . . 3 . . Recycling Units 7 | . 3 1 . . . . . . . . . . . . . . . . . . 3 . Scanalyzers 21 | . . 13 . . . . . . . 3 . 5 . . . . . . . . . . Garrison Access 11 | . . . . 2 . 1 . 1 . 3 . 1 . . . . . 1 . 1 1 . Terminal Hacks 30 | . 2 7 . 3 . 3 . . 1 . 1 . 1 1 8 . . . . 1 2 . Robot Schematic 1 | . . . . . . . . . . . . . . . 1 . . . . . . . Robot Analysis 4 | . . 1 . 2 . 1 . . . . . . . . . . . . . . . . Prototype ID Bank 3 | . 1 1 . . . . . . . . . . . . 1 . . . . . . . Open Door 8 | . . . . . . . . . . . . . 1 1 6 . . . . . . . Branch Access Points 2 | . . . . 1 . 1 . . . . . . . . . . . . . . . . Unreport Threat 1 | . . . . . . 1 . . . . . . . . . . . . . . . . Locate Traps 1 | . . 1 . . . . . . . . . . . . . . . . . . . . Maintenance Status 1 | . . 1 . . . . . . . . . . . . . . . . . . . . Hauler Manifests 2 | . . 1 . . . . . . . . . . . . . . . . . . 1 . Registered Components 1 | . 1 . . . . . . . . . . . . . . . . . . . . . Registered Prototypes 1 | . . 1 . . . . . . . . . . . . . . . . . . . . Zone Layout 3 | . . 1 . . . . . . . . . . . . . . . . . 1 1 . Garrison Registry 1 | . . . . . . . . . 1 . . . . . . . . . . . . . Patrol Navigation 1 | . . . . . . . . . . . 1 . . . . . . . . . . . Fabricator Hacks 4 | . . . . . . . . . . 2 . 1 . . . . . . . . 1 . Network Status 3 | . . . . . . . . . . 1 . 1 . . . . . . . . 1 . Build 1 | . . . . . . . . . . 1 . . . . . . . . . . . . Repair Station Hacks 6 | . . 4 . . . . . . . 2 . . . . . . . . . . . . Scan Component 3 | . . 2 . . . . . . . 1 . . . . . . . . . . . . Repair 3 | . . 2 . . . . . . . 1 . . . . . . . . . . . . Recycling Unit Hacks . | . . . . . . . . . . . . . . . . . . . . . . . Scanalyzer 10 | . . 8 . . . . . . . 1 . 1 . . . . . . . . . . Insert Component 3 | . . 3 . . . . . . . . . . . . . . . . . . . . Analyze 4 | . . 4 . . . . . . . . . . . . . . . . . . . . Retrieve Study 3 | . . 1 . . . . . . . 1 . 1 . . . . . . . . . . Garrison Access Hacks 9 | . . . . 1 . 1 . 1 . 2 . 1 . . . . . 1 . 1 1 . Unlock Access 8 | . . . . 1 . 1 . 1 . 1 . 1 . . . . . 1 . 1 1 . Coupler Status 1 | . . . . . . . . . . 1 . . . . . . . . . . . . Unauthorized Hacks 12 | . 2 2 . . . . . . . 3 . 1 . . . . . 1 . 1 2 . Terminals 1 | . . . . . . . . . . . . . . . . . . 1 . . . . Sabotage 1 | . . . . . . . . . . . . . . . . . . 1 . . . . Fabricators 5 | . . . . . . . . . . 2 . 1 . . . . . . . . 2 . Report 1 | . . . . . . . . . . . . . . . . . . . . . 1 . Prioritize 1 | . . . . . . . . . . 1 . . . . . . . . . . . . Haulers 3 | . . . . . . . . . . 1 . 1 . . . . . . . . 1 . Repair Stations 1 | . . . . . . . . . . . . . . . . . . . . 1 . . Mechanics 1 | . . . . . . . . . . . . . . . . . . . . 1 . . Recycling Units 3 | . 2 1 . . . . . . . . . . . . . . . . . . . . Tunnel 3 | . 2 1 . . . . . . . . . . . . . . . . . . . . Scanalyzers 1 | . . 1 . . . . . . . . . . . . . . . . . . . . Extract 1 | . . 1 . . . . . . . . . . . . . . . . . . . . Garrison Access 1 | . . . . . . . . . . 1 . . . . . . . . . . . . Eject 1 | . . . . . . . . . . 1 . . . . . . . . . . . . Data Cores Recovered 1 | . . . . . . . . . . . . . . . . . . 1 . . . . Used . | . . . . . . . . . . . . . . . . . . . . . . . Hacking Detections 60 | . 2 8 . 2 2 4 3 . 1 9 2 4 1 3 8 . . 1 2 6 2 . Full Trace Events 10 | . 2 1 . . . 1 1 . 1 . . . . 1 3 . . . . . . . Feedback Events 1 | . 1 . . . . . . . . . . . . . . . . . . . . . Corruption 1 | . 1 . . . . . . . . . . . . . . . . . . . . . Feedback Blocked . | . . . . . . . . . . . . . . . . . . . . . . . Robot Schematics Acquired 1 | . . . . . . . . . . . . . . . 1 . . . . . . . Robots Built . | . . . . . . . . . . . . . . . . . . . . . . . Authchips . | . . . . . . . . . . . . . . . . . . . . . . . Time . | . . . . . . . . . . . . . . . . . . . . . . . Total Robot Build Rating . | . . . . . . . . . . . . . . . . . . . . . . . Part Schematics Acquired 8 | . . 8 . . . . . . . . . . . . . . . . . . . . Parts Built 2 | . . . . . . . . . . 2 . . . . . . . . . . . . Authchips . | . . . . . . . . . . . . . . . . . . . . . . . Time 84 | . . . . . . . . . . 84 . . . . . . . . . . . . Total Part Build Rating 8 | . . . . . . . . . . 8 . . . . . . . . . . . . Part Studies Acquired 3 | . . 1 . . . . . . . 1 . 1 . . . . . . . . . . Parts Repaired 3 | . . 2 . . . . . . . 1 . . . . . . . . . . . . Time 96 | . . 52 . . . . . . . 44 . . . . . . . . . . . . Parts Recycled . | . . . . . . . . . . . . . . . . . . . . . . . Recycled Matter . | . . . . . . . . . . . . . . . . . . . . . . . Retrieved Matter . | . . . . . . . . . . . . . . . . . . . . . . . Retrieved Components . | . . . . . . . . . . . . . . . . . . . . . . . Parts Scanalyzed 3 | . . 3 . . . . . . . . . . . . . . . . . . . . Part Schematics Acquired 3 | . . 3 . . . . . . . . . . . . . . . . . . . . Parts Damaged 1 | . . 1 . . . . . . . . . . . . . . . . . . . . Bothacking | -11 -10 -9 -9 -8 -8 -8 -8 -8 -8 -7 -7 -7 -7 -6 -6 -6 -6 -6 -6 -5 -4 -4 ------------ Run | Yrd Mat Mat Min Mat Gar Mat Gar Mat Gar Fac Gar Fac Gar Fac Ext Cet Arc Hub Gar Fac Fac Gar Used RIF Installer 9 | . . . . . 1 . 2 . 1 . 2 . 1 . . . . . 2 . . . Code Merge 1 | . . . . . . . . . . . 1 . . . . . . . . . . . Threat Obfuscator 1 | . . . . . . . 1 . . . . . . . . . . . . . . . Zone Cloak 1 | . . . . . . . . . . . . . . . . . . . 1 . . . Robot Detection 1 | . . . . . . . . . 1 . . . . . . . . . . . . . Watcher Feeds 1 | . . . . . . . . . . . . . 1 . . . . . . . . . Alert ID Control 1 | . . . . . . . 1 . . . . . . . . . . . . . . . Program Shield 1 | . . . . . . . . . . . 1 . . . . . . . . . . . Crosswire 1 | . . . . . . . . . . . . . . . . . . . 1 . . . Robots Hacked 67 | . . . . . . . 6 . 5 7 . 1 11 1 5 . . . 12 15 1 3 Non-combat 12 | . . . . . . . . . . 5 . 1 . 1 . . . . . 4 1 . Combat 55 | . . . . . . . 6 . 5 2 . . 11 . 5 . . . 12 11 . 3 Robot Hacks Applied 75 | . . . . . . . 6 . 6 8 . 1 11 3 5 . . . 12 18 1 4 parse_system 5 | . . . . . . . . . . . . . 1 . 1 . . . . 2 . 1 no_distress 1 | . . . . . . . . . . . . . . . . . . . . 1 . . find_chute 2 | . . . . . . . . . . 1 . . . . . . . . . . 1 . ignore_repairs 1 | . . . . . . . . . . 1 . . . . . . . . . . . . map_walls 1 | . . . . . . . . . . 1 . . . . . . . . . . . . find_recycling 2 | . . . . . . . . . . 1 . . . . . . . . . 1 . . find_station 1 | . . . . . . . . . . 1 . . . . . . . . . . . . purge_threat 5 | . . . . . . . . . . . . . . 3 . . . . . 2 . . block_reporting 1 | . . . . . . . . . . 1 . . . . . . . . . . . . scatter_targeting 2 | . . . . . . . 1 . . . . . . . . . . . . 1 . . spike_heat 1 | . . . . . . . 1 . . . . . . . . . . . . . . . overload_power 1 | . . . . . . . 1 . . . . . . . . . . . . . . . amplify_resonance 15 | . . . . . . . . . . . . . 5 . . . . . 6 4 . . wipe_record 4 | . . . . . . . . . 2 1 . . 1 . . . . . . . . . disable_weapons 1 | . . . . . . . . . . . . . . . 1 . . . . . . . reboot_system 1 | . . . . . . . . . . . . . . . . . . . 1 . . . go_dormant 1 | . . . . . . . . . 1 . . . . . . . . . . . . . overwrite_iff 19 | . . . . . . . 2 . 2 . . . 2 . 1 . . . 4 5 . 3 formatsys_low 2 | . . . . . . . . . . . . 1 . . . . . . . 1 . . formatsys_high 9 | . . . . . . . 1 . 1 1 . . 2 . 2 . . . 1 1 . . Relay Couplers Released 65 | . . . . . 4 . 8 . 4 4 8 . 15 . . . . . 20 2 . . Ejected 4 | . . . . . . . . . . 4 . . . . . . . . . . . . Machine Destruction 57 | . . . . . 4 . 8 . 4 . 8 . 15 . . . . . 16 2 . . Programmers 4 | . . . . . . . . . . . . . . . . . . . 4 . . . Attached 24 | . . . . . . . 1 . 3 3 2 1 5 . 1 1 . . 4 3 . . Crosswired 4 | . . . . . . . . . . . . . . . . . . . 3 1 . . Merged Code Value 92 | . . . . . . . . . . . 6 . 25 . . . . . 61 . . . Fabnet Peak Effective % . | . . . . . . . . . . . . . . . . . . . . . . . Robots Rewired 45 | . . . . . . . 3 . 6 . 7 . 6 . 15 . . . 6 . 2 . Allies Hacked 3 | . . . . . . . . . 3 . . . . . . . . . . . . . Hacks Repelled . | . . . . . . . . . . . . . . . . . . . . . . . Allies | -11 -10 -9 -9 -8 -8 -8 -8 -8 -8 -7 -7 -7 -7 -6 -6 -6 -6 -6 -6 -5 -4 -4 -------- Run | Yrd Mat Mat Min Mat Gar Mat Gar Mat Gar Fac Gar Fac Gar Fac Ext Cet Arc Hub Gar Fac Fac Gar Total Allies 90 | . . . . . . . 6 . 8 1 7 1 11 . 29 5 . . 11 7 2 2 Largest Group 20 | . . . . . . . 2 3 6 1 7 2 8 8 18 20 18 14 9 8 2 2 Highest-Rated Group 1083 | . . . . . . . 32 15 60 21 192 60 199 199 720 1083 1015 769 406 375 91 96 Highest-Rated Ally 159 | . . . . . . . 16 5 15 21 40 40 95 39 159 159 159 96 96 96 49 49 Total Orders 27 | . . . . . . . . . . . . . 15 3 2 . 2 . 5 . . . STAY 9 | . . . . . . . . . . . . . 4 . 1 . 1 . 3 . . . FOLLOW 11 | . . . . . . . . . . . . . 6 1 1 . 1 . 2 . . . DROP 2 | . . . . . . . . . . . . . 1 1 . . . . . . . . PICKUP 1 | . . . . . . . . . . . . . 1 . . . . . . . . . COLLECT 4 | . . . . . . . . . . . . . 3 1 . . . . . . . . Ally Attacks 589 | . . . . . . . 12 . 42 . 43 6 11 49 137 43 20 14 110 83 8 11 Total Damage 15833 | . . . . . . . 139 . 406 . 987 121 254 1682 3559 806 467 359 3792 2394 546 321 Kills 135 | . . . . . . . 2 . 5 . 10 2 4 13 31 6 3 4 27 19 9 . Allies Corrupted . | . . . . . . . . . . . . . . . . . . . . . . . Allies Melted 1 | . . . . . . . . . . . 1 . . . . . . . . . . . Intel | -11 -10 -9 -9 -8 -8 -8 -8 -8 -8 -7 -7 -7 -7 -6 -6 -6 -6 -6 -6 -5 -4 -4 ------- Run | Yrd Mat Mat Min Mat Gar Mat Gar Mat Gar Fac Gar Fac Gar Fac Ext Cet Arc Hub Gar Fac Fac Gar Active Infowar (turns) 5991 | 8 157 . . 13 1402 815 1598 . . 685 14 365 . 339 42 . . . . 546 7 . Optics 3828 | . . . . 13 1402 815 1598 . . . . . . . . . . . . . . . Sensors 10 | . . . . . . . . . . . . . . . . . . . . 10 . . Terrain 1981 | . . . . . . . . . . 685 14 365 . 339 42 . . . . 536 . . Seismic 362 | 8 157 . . . . 197 . . . . . . . . . . . . . . . . Jamming 7 | . . . . . . . . . . . . . . . . . . . . . 7 . Robot Analysis Total 4 | . . 1 . 2 . 1 . . . . . . . . . . . . . . . . Derelict Logs Recovered 1 | . . . 1 . . . . . . . . . . . . . . . . . . . Drone Launches . | . . . . . . . . . . . . . . . . . . . . . . . Drone Recoveries . | . . . . . . . . . . . . . . . . . . . . . . . Exploration | -11 -10 -9 -9 -8 -8 -8 -8 -8 -8 -7 -7 -7 -7 -6 -6 -6 -6 -6 -6 -5 -4 -4 ------------- Run | Yrd Mat Mat Min Mat Gar Mat Gar Mat Gar Fac Gar Fac Gar Fac Ext Cet Arc Hub Gar Fac Fac Gar Turns Passed 18293 | 103 558 1584 368 102 1402 815 1844 24 1248 1705 1298 434 1315 340 1543 386 558 85 1366 858 231 126 Spaces Moved 8478 | 43 179 773 225 66 691 312 706 10 387 808 505 237 636 190 610 165 251 46 685 531 353 69 Core 147 | 2 . . . . . . . . . . . . . . . . . . . 86 49 10 Treads 7388 | 41 179 773 225 66 691 312 706 10 387 386 406 237 636 190 610 165 251 46 685 386 . . Legs 152 | . . . . . . . . . . 3 65 . . . . . . . . . 25 59 Wheels 453 | . . . . . . . . . . 419 34 . . . . . . . . . . . Hover . | . . . . . . . . . . . . . . . . . . . . . . . Flight 338 | . . . . . . . . . . . . . . . . . . . . 59 279 . Fastest Speed 34 | 50 160 145 145 145 145 160 160 240 160 100 145 160 160 160 160 160 160 160 160 40 34 50 Average Speed 163 | 154 165 146 145 145 150 176 204 240 237 165 182 160 160 160 194 160 160 160 160 131 43 141 Slowest Speed 650 | 160 240 160 145 145 232 240 240 240 240 270 232 160 160 160 240 160 160 160 160 165 120 650 Overloaded Moves . | . . . . . . . . . . . . . . . . . . . . . . . Propulsion Burnouts . | . . . . . . . . . . . . . . . . . . . . . . . Robots Hopped 6 | . . . . . . . . . . . . . . . . . . . . 6 . . Potential Cave-ins 1 | . . . . . . . . . . . . . . . . . . . . 1 . . Cave-ins Triggered . | . . . . . . . . . . . . . . . . . . . . . . . Exploration Rate (%) 41 | 4 30 54 51 7 70 32 82 3 52 31 66 11 73 12 84 84 91 7 68 20 12 11 Regions Visited 22 Branch Regions 5 Pre-discovered Areas 4 | . 2 1 1 . . . . . . . . . . . . . . . . . . . Known Exits Taken 7 | . . . . 1 . 1 . 1 . 1 . 1 . . . . . 1 . . 1 . Unknown Exits Taken 9 | 1 1 1 1 . . . . . . . . . . 1 1 1 1 . . 1 . . Scrap Searched . | . . . . . . . . . . . . . . . . . . . . . . . Spaces Dug 39 | . . . . . 1 . 8 . . 11 . 2 6 1 . . . . 4 6 . . Terrain Destroyed 269 | . . . . . 1 12 35 . 12 48 8 2 42 1 . . 12 . 16 30 50 . Melee 37 | . . . . . 1 . 8 . . 11 . 2 6 1 . . . . 2 6 . . Projectile 19 | . . . . . . . . . . . . . . . . . 12 . 4 3 . . AOE 213 | . . . . . . 12 27 . 12 37 8 . 36 . . . . . 10 21 50 . Terrain Rammed . | . . . . . . . . . . . . . . . . . . . . . . . Walls Destroyed . | . . . . . . . . . . . . . . . . . . . . . . . Machines Disabled . | . . . . . . . . . . . . . . . . . . . . . . . Actions | -11 -10 -9 -9 -8 -8 -8 -8 -8 -8 -7 -7 -7 -7 -6 -6 -6 -6 -6 -6 -5 -4 -4 --------- Run | Yrd Mat Mat Min Mat Gar Mat Gar Mat Gar Fac Gar Fac Gar Fac Ext Cet Arc Hub Gar Fac Fac Gar Total 11296 | 63 308 1099 246 72 861 461 929 10 617 1038 747 284 838 216 877 256 322 51 880 633 396 92 Wait 725 | 3 41 179 10 . 30 45 31 . 26 81 14 18 33 10 56 44 26 1 63 8 1 5 Move 8452 | 43 178 772 224 65 690 312 705 10 386 807 504 237 635 189 609 164 250 46 684 520 353 69 Hop 4 | . . . . . . . . . . . . . . . . . . . . 4 . . Pick Up 144 | 3 5 27 1 2 14 13 11 . 11 14 8 6 2 3 4 6 . . 7 4 2 1 Fast Attach 104 | 6 1 9 . . 4 3 6 . 5 9 10 1 5 . 3 4 2 . 8 12 10 6 Attach 66 | 1 2 2 . 2 8 4 11 . 3 4 2 3 . 2 2 2 . . . 11 3 4 Detach 18 | . 1 2 . . . 1 1 . 1 1 1 1 1 . 1 1 . . 1 1 4 . Swap 179 | . 1 9 1 2 9 13 17 . 23 16 11 4 22 2 17 8 1 . 15 7 . 1 Drop 181 | . 1 25 1 1 13 16 6 . 16 19 19 7 6 1 7 11 3 . 15 12 2 . Fire 793 | 7 78 58 9 . 81 49 83 . 59 41 68 2 41 5 46 16 40 2 54 37 12 5 Melee 153 | . . . . . 12 . 16 . 21 45 2 5 15 4 3 . . . 10 11 9 . Ram . | . . . . . . . . . . . . . . . . . . . . . . . Kick 1 | . . . . . . . . . . . . . . . . . . . . . . 1 Crush 27 | . . 16 . . . 5 . . . 1 . . . . 2 . . 2 . 1 . . Escape Stasis 37 | . . . . . . . 16 . 10 . 6 . . . . . . . . 5 . . Rewire 412 | . . . . . . . 26 . 56 . 102 . 78 . 127 . . . 23 . . . Trap . | . . . . . . . . . . . . . . . . . . . . . . . Miscellaneous . | . . . . . . . . . . . . . . . . . . . . . . . Route ------- -11/Scrapyard -10/Materials -9/Materials (discovered 2 exits: *Mat / [*Min]) -9/Mines (discovered 2 exits: *Mat / [*Zio]) -8/Materials (discovered 2 exits: Sto / Gar) -8/Garrison (discovered 3 exits: *Mat x3) -8/Materials (discovered 4 exits: *Fac x2 / Sto / Gar) -8/Garrison (discovered 4 exits: *Fac x3 / *Mat) -8/Materials -8/Garrison (discovered 3 exits: *Fac x3) -7/Factory (discovered 2 exits: *Fac / Gar) -7/Garrison (discovered 2 exits: *Fac x2) -7/Factory -7/Garrison (discovered 3 exits: *Fac x3) -6/Factory -6/Extension (discovered 2 exits: *Fac / *Cet) -6/Cetus (discovered 2 exits: *Fac / [*Arc]) -6/Archives (discovered 3 exits: *Fac / *Hub x2) -6/Hub_04(d) -6/Garrison (discovered 2 exits: *Fac x2) -5/Factory (discovered 2 exits: *Fac x2) -4/Factory -4/Garrison History --------- Turn | Location | Event 49 | -11/Scrapyard | Discovered new exit (range 16) 104 | -11/Scrapyard | Entered Materials 315 | -10/Materials | Build established: Mutant 438 | -10/Materials | Core integrity fell below 50% 527 | -10/Materials | Discovered new exit (range 5) 575 | -10/Materials | Core integrity fell below 20% 662 | -10/Materials | Entered another Materials area 662 | -9/Materials | Evolved 2 slots: Propulsion x1, Weapon x1 697 | -9/Materials | Repaired Lgt. Assault Rifle 725 | -9/Materials | Repaired Lgt. Treads 1068 | -9/Materials | Build established: Tank 1333 | -9/Materials | Central database locked down 1411 | -9/Materials | Discovered new exit (range 13) 2165 | -9/Materials | Discovered new exit (range 12) 2246 | -9/Materials | Entered Mines 2474 | -9/Mines | Found a Scrap Suit stashed away for nefarious purposes 2487 | -9/Mines | Learned location of Zion (-7) 2499 | -9/Mines | A Derelict revealed a hidden shortcut to a safe place 2605 | -9/Mines | Discovered new exit (range 7) 2614 | -9/Mines | Entered Materials 2614 | -8/Materials | Evolved 2 slots: Utility x2 2634 | -8/Materials | Identified exit to Storage 2715 | -8/Materials | Identified exit to Garrison 2716 | -8/Materials | Entered Garrison 2771 | -8/Garrison | Triggered checkpoint 2814 | -8/Garrison | Triggered checkpoint 2849 | -8/Garrison | Triggered checkpoint 2882 | -8/Garrison | Triggered checkpoint 2939 | -8/Garrison | Triggered checkpoint 3004 | -8/Garrison | Build established: Gunner 3099 | -8/Garrison | Triggered checkpoint 3152 | -8/Garrison | Triggered checkpoint 3169 | -8/Garrison | Installed Relay Interface Framework 3263 | -8/Garrison | Discovered new exit (range 13) 3566 | -8/Garrison | Discovered new exit (range 11) 3740 | -8/Garrison | Discovered new exit (range 12) 3758 | -8/Garrison | Build established: Scavenger-Gunner 3826 | -8/Garrison | Lost 3 parts (2n1w) 3844 | -8/Garrison | Triggered checkpoint 4043 | -8/Garrison | Garrison Relay disabled 4118 | -8/Garrison | Entered Materials 4373 | -8/Materials | Core integrity fell below 50% 4570 | -8/Materials | Discovered new exit (range 4) 4909 | -8/Materials | Discovered new exit (range 20) 4933 | -8/Materials | Identified exit to Garrison 4933 | -8/Materials | Entered Garrison 5108 | -8/Garrison | Expanded RIF knowledge: Threat Obfuscation 5220 | -8/Garrison | Triggered checkpoint 5258 | -8/Garrison | Triggered checkpoint 5307 | -8/Garrison | Destroyed 8 combat bots 5359 | -8/Garrison | Triggered checkpoint 5451 | -8/Garrison | Triggered checkpoint 5663 | -8/Garrison | Discovered new exit (range 10) 6005 | -8/Garrison | Garrison Relay disabled 6084 | -8/Garrison | Discovered new exit (range 10) 6144 | -8/Garrison | Triggered checkpoint 6286 | -8/Garrison | Discovered new exit (range 12) 6289 | -8/Garrison | Triggered checkpoint 6325 | -8/Garrison | Discovered new exit (range 6) 6424 | -8/Garrison | Lost 3 parts (1p1n1w) 6446 | -8/Garrison | Build established: Bothacker-Gunner 6499 | -8/Garrison | Triggered checkpoint 6526 | -8/Garrison | System corruption reached 10% 6573 | -8/Garrison | Lost 6 parts (1p1n2u2w) 6574 | -8/Garrison | Expanded RIF knowledge: Alert ID Control 6612 | -8/Garrison | Garrison Relay disabled 6777 | -8/Garrison | Entered Materials 6777 | -8/Materials | Accompanied by 3 allies 6801 | -8/Materials | Identified exit to Garrison 6801 | -8/Materials | Entered Garrison 6801 | -8/Garrison | Accompanied by 3 allies 6806 | -8/Garrison | Triggered checkpoint 6827 | -8/Garrison | Triggered checkpoint 6866 | -8/Garrison | Lost 3 allies 7200 | -8/Garrison | Discovered new exit (range 27) 7200 | -8/Garrison | Discovered new exit (range 63) 7200 | -8/Garrison | Discovered new exit (range 74) 7286 | -8/Garrison | P-60 Hacker assimilated allied Defender 3a 7288 | -8/Garrison | Build established: Bothacker-Mutant 7316 | -8/Garrison | Core integrity fell below 20% 7339 | -8/Garrison | Lost 3 allies 7584 | -8/Garrison | System corruption reached 30% 7772 | -8/Garrison | Expanded RIF knowledge: Robot Detection 7793 | -8/Garrison | Garrison Relay disabled 8049 | -8/Garrison | Entered Factory 8049 | -7/Factory | Evolved 2 slots: Utility x2 8070 | -7/Factory | Build established: Botlord-Mutant 8481 | -7/Factory | Build established: Botlord-Tank 8795 | -7/Factory | Fabricated Adv. Terrain Scan Processor (x2) 9054 | -7/Factory | Build established: Botlord-Mutant 9166 | -7/Factory | Lost 3 parts (1p1n1w) 9177 | -7/Factory | Central database locked down 9499 | -7/Factory | Repaired Hvy. Missile Launcher 9702 | -7/Factory | Discovered new exit (range 14) 9741 | -7/Factory | Identified exit to Garrison 9754 | -7/Factory | Entered Garrison 9794 | -7/Garrison | Triggered checkpoint 10132 | -7/Garrison | Expanded RIF knowledge: Program Shield 10304 | -7/Garrison | Triggered checkpoint 10315 | -7/Garrison | Triggered checkpoint 10336 | -7/Garrison | Triggered checkpoint 10355 | -7/Garrison | Lost 5 allies 10419 | -7/Garrison | Discovered new exit (range 15) 10729 | -7/Garrison | Build established: Scavenger-Tank 10750 | -7/Garrison | Triggered checkpoint 10800 | -7/Garrison | Expanded RIF knowledge: Code Merge 10833 | -7/Garrison | Garrison Relay disabled 10875 | -7/Garrison | Discovered new exit (range 10) 11014 | -7/Garrison | Garrison Relay disabled 11052 | -7/Garrison | Entered Factory 11052 | -7/Factory | Accompanied by 2 allies 11481 | -7/Factory | Identified exit to Garrison 11486 | -7/Factory | Entered Garrison 11486 | -7/Garrison | Accompanied by 2 allies 11524 | -7/Garrison | Triggered checkpoint 11635 | -7/Garrison | Garrison Relay disabled 11786 | -7/Garrison | Triggered checkpoint 11798 | -7/Garrison | Triggered checkpoint 11840 | -7/Garrison | Lost 5 allies 11968 | -7/Garrison | Discovered new exit (range 15) 11992 | -7/Garrison | Expanded RIF knowledge: Watcher Feeds 12022 | -7/Garrison | Triggered checkpoint 12053 | -7/Garrison | Garrison Relay disabled 12336 | -7/Garrison | Triggered checkpoint 12343 | -7/Garrison | Build established: Botlord-Tank 12381 | -7/Garrison | Garrison Relay disabled 12426 | -7/Garrison | Discovered new exit (range 10) 12520 | -7/Garrison | Triggered checkpoint 12532 | -7/Garrison | Discovered new exit (range 24) 12628 | -7/Garrison | Triggered checkpoint 12636 | -7/Garrison | Triggered checkpoint 12720 | -7/Garrison | Garrison Relay disabled 12801 | -7/Garrison | Entered Factory 12801 | -6/Factory | Accompanied by 8 allies 12801 | -6/Factory | Evolved 2 slots: Utility x2 13013 | -6/Factory | Build established: Botlord-Mutant 13098 | -6/Factory | Discovered new exit (range 6) 13110 | -6/Factory | Garrison activated, responded to threat 13141 | -6/Factory | Entered Extension 13141 | -6/Extension | Accompanied by 4 allies 13148 | -6/Extension | Lost 3 allies 13237 | -6/Extension | Rescued a captive Derelict 13237 | -6/Extension | Rescued a captive Derelict 13410 | -6/Extension | Rescued A7 13980 | -6/Extension | Build established: Botlord-Tank 14014 | -6/Extension | Spotted B-75 Beast 14033 | -6/Extension | Spotted B-75 Beast 14037 | -6/Extension | Allies destroyed B-75 Beast 14068 | -6/Extension | Destroyed B-75 Beast 14078 | -6/Extension | Lost 8 allies 14117 | -6/Extension | Rescued a captive Derelict 14118 | -6/Extension | Rescued a captive Derelict 14245 | -6/Extension | Rescued a captive Derelict 14246 | -6/Extension | Rescued a captive Derelict 14268 | -6/Extension | Rescued a captive Derelict 14268 | -6/Extension | Rescued a captive Derelict 14295 | -6/Extension | Rescued a captive Derelict 14296 | -6/Extension | Rescued a captive Derelict 14613 | -6/Extension | Discovered new exit (range 10) 14616 | -6/Extension | Discovered new exit (range 6) 14684 | -6/Extension | Entered Cetus 14684 | -6/Cetus | Accompanied by 18 allies (A7) 14689 | -6/Cetus | Acquired a Cetus Manufacturing Module code from A7 14708 | -6/Cetus | Spotted Cetus Guard 14708 | -6/Cetus | Spotted Cetus Guard 14711 | -6/Cetus | Allies destroyed Cetus Guard 14711 | -6/Cetus | Spotted Cetus Guard 14711 | -6/Cetus | Spotted Cetus Guard 14715 | -6/Cetus | Allies destroyed Cetus Guard 14717 | -6/Cetus | Allies destroyed Cetus Guard 14727 | -6/Cetus | Destroyed Cetus Guard 14814 | -6/Cetus | Discovered new exit (range 36) 14826 | -6/Cetus | Started Cetus Manufacturing Module 14851 | -6/Cetus | Manufactured an Enhanced Grunt 14851 | -6/Cetus | Escorted A7 to Cetus Mainframe 14876 | -6/Cetus | Manufactured an Enhanced Grunt 14894 | -6/Cetus | Discovered new exit (range 27) 14900 | -6/Cetus | Spotted Cetus Guard 14901 | -6/Cetus | Manufactured an Enhanced Grunt 14901 | -6/Cetus | Spotted Cetus Guard 14905 | -6/Cetus | Spotted Cetus Guard 14910 | -6/Cetus | Allies destroyed Cetus Guard 14914 | -6/Cetus | Destroyed Cetus Guard 14915 | -6/Cetus | Spotted Cetus Guard 14915 | -6/Cetus | Allies destroyed Cetus Guard 14921 | -6/Cetus | Allies destroyed Cetus Guard 14926 | -6/Cetus | Manufactured an Enhanced Grunt 14939 | -6/Cetus | Met Revision 17 14948 | -6/Cetus | System corruption reached 10% 14951 | -6/Cetus | Manufactured an Enhanced Grunt 15070 | -6/Cetus | Entered Archives 15070 | -6/Archives | Accompanied by 18 allies (A7) 15075 | -6/Archives | Received a hacking code to weaken MAIN.C 15192 | -6/Archives | Discovered new exit (range 15) 15266 | -6/Archives | Discovered new exit (range 15) 15537 | -6/Archives | Discovered new exit (range 15) 15628 | -6/Archives | Entered Hub_04(d) 15628 | -6/Hub_04(d) | Accompanied by 14 allies 15660 | -6/Hub_04(d) | Network Hub disabled 15706 | -6/Hub_04(d) | Identified exit to Garrison 15713 | -6/Hub_04(d) | Entered Garrison 15713 | -6/Garrison | Accompanied by 6 allies 15787 | -6/Garrison | Triggered checkpoint 15862 | -6/Garrison | Garrison Relay disabled 15893 | -6/Garrison | Garrison Relay disabled 15975 | -6/Garrison | Triggered checkpoint 15987 | -6/Garrison | Triggered checkpoint 16031 | -6/Garrison | Triggered checkpoint 16059 | -6/Garrison | Triggered checkpoint 16124 | -6/Garrison | Triggered checkpoint 16157 | -6/Garrison | Expanded RIF knowledge: Zone Cloak 16188 | -6/Garrison | Garrison Relay disabled 16237 | -6/Garrison | Discovered new exit (range 12) 16346 | -6/Garrison | Triggered checkpoint 16414 | -6/Garrison | Triggered checkpoint 16420 | -6/Garrison | Build established: Botlord-Mutant 16488 | -6/Garrison | Triggered checkpoint 16840 | -6/Garrison | Expanded RIF knowledge: Crosswire 16882 | -6/Garrison | Discovered new exit (range 10) 16887 | -6/Garrison | Triggered checkpoint 16921 | -6/Garrison | Triggered checkpoint 16941 | -6/Garrison | Garrison Relay disabled 17079 | -6/Garrison | Entered Factory 17079 | -5/Factory | Accompanied by 8 allies 17079 | -5/Factory | Evolved 2 slots: Power x1, Utility x1 17320 | -5/Factory | Identified exit to Garrison 17323 | -5/Factory | Garrison activated, responded to threat 17334 | -5/Factory | Unchained authorized (V4-D3R) 17486 | -5/Factory | Discovered new exit (range 25) 17677 | -5/Factory | Discovered new exit (range 11) 17718 | -5/Factory | Garrison activated, responded to threat 17784 | -5/Factory | Spotted V4-D3R 17786 | -5/Factory | System corruption reached 10% 17842 | -5/Factory | Lost 7 allies 17850 | -5/Factory | Allied Derelicts emerged from ambush trap array 17876 | -5/Factory | Lost 14 parts (1p2n7u4w) 17880 | -5/Factory | System corruption reached 30% 17882 | -5/Factory | Core integrity fell below 50% 17889 | -5/Factory | Lost 3 allies 17918 | -5/Factory | Lost 5 parts (1n4u) 17922 | -5/Factory | Core integrity fell below 20% 17937 | -5/Factory | Entered another Factory area 17937 | -4/Factory | Evolved 2 slots: Utility x2 18096 | -4/Factory | Garrison activated, responded to threat 18128 | -4/Factory | Lost 5 parts (2n3w) 18142 | -4/Factory | Core integrity fell below 50% 18168 | -4/Factory | Identified exit to Garrison 18168 | -4/Factory | Entered Garrison 18208 | -4/Garrison | Found Quantum Capacitor 18209 | -4/Garrison | Lost 5 parts (3n1u1w) 18210 | -4/Garrison | Found Quantum Capacitor 18213 | -4/Garrison | Found Quantum Capacitor 18216 | -4/Garrison | Found Quantum Capacitor 18271 | -4/Garrison | Core integrity fell below 20% 18294 | -4/Garrison | Destroyed by G-67 Veteran with Plasma Rifle Last Messages --------------- 18267_ Slug penetrates Y-64 Sentinel. 18269_ Kicked G-67 Veteran out of the way. 18269_ Triggered Alarm Trap. 18269_ An alarm sounds. 18269_ Slug penetrates G-67 Veteran. 18272_ Jacked Y-64 Sentinel... >>overwrite_iff Rewriting IFF filter. 18272_ Slug penetrates G-67 Veteran. 18272_ Penetrated by Slug. 18275_ Slug penetrates Wall. 18277_ Slug penetrates Y-64 Sentinel. 18278_ Slug penetrates Wall. 18279_ Y-64 Sentinel destroyed. 18280_ Penetrated by Slug. 18283_ Acquired Wave Gun. 18285_ Penetrated by Slug. 18285_ Thunder Leg destroyed. 18288_ Imp. Remote Datajack destroyed. 18291_ Wave Gun destroyed. Map ----- +----------------------------------------------------+ | ?????????????????????????????????????? | | ?????????????????????????????????????? | | ?????????????????????????????????????? | | ?????????????????????????????????????? | | ?????????????????????????????????????? | | ?????????????????????????????????????? | | ?????????????????????????????????????? | | ?????????????????????????????????????? | | ?????????????????????????????????????? | | ?????????????????????????????????????? | | ?????????????????????????????????????? | | ?????????????????????????????????????? | | ?????????????????????????????????????? | | ?????????????????????????????????????? | | ?????????????????????????????????????? | | ?????????????????????????????????????? | | ?????????????????????????????????????? | | ?????????????????????????????????????? | | ????????????###??????????????????????? | | ????????????# #?#??????#?????????????? | | ????????#####g#+##### ######????????? | | ????????# ^ ???????? | | ????????# g ???????? | | ????????# %Y ???????? | | ????????# #b#+#########????????????? | | ????????# #@#?#???# #?????????????? | | ????????##"####?????# #?????????????? | | ?????????# #????????# #?????????????? | | ?????????# #????????# #?????????????? | | ?????????# #???????## ##????????????? | | ??????#### ####????# #????????????? | | ??????# #????# !#????????????? | | ??????# #????# #????????????? | | ?????## " #????# !#????????????? | | ?????#"" """ #????## ##????????????? | | ?????#" " ####### ######????????? | | ?????#" ?? | | ?????#" " ###############????????? | | ?????#"""""####??????????????????????? | | ?????#####"??????????????????????????? | | ?????????#"??????????????????????????? | | ?????????##??????????????????????????? | | ?????????????????????????????????????? | | ?????????????????????????????????????? | | ?????????????????????????????????????? | | ?????????????????????????????????????? | | ?????????????????????????????????????? | | ?????????????????????????????????????? | | ?????????????????????????????????????? | | ?????????????????????????????????????? | +----------------------------------------------------+ Best States ------------- Heat Dissipation 45 Energy Generation 34 Energy Capacity 525 Matter Stores 300 Matter Capacity 300 Sight Range 20 Robot Scan Range 15 Terrain Scan Range 16 Terrain Scan Density 210 Jamming Range 16 Armor Coverage 450 Resistance: KI 30 Evasion (%) 70 Targeting Accuracy 6 Recoil Reduction 3 Relay Coupler Types 8 Relay Coupler Value 178 Authchip Count 3 Item Schematics ----------------- Cesium-ion Thruster | -9/Materials | Scanalyzed Mni. Grenade Launcher | -9/Materials | Scanalyzed Grenade Launcher | -9/Materials | Extracted Ion Engine | -9/Materials | Extracted Beam Rifle | -9/Materials | Extracted VTOL Module | -9/Materials | Extracted Core Shielding | -9/Materials | Extracted Imp. Terrain Scanner | -9/Materials | Scanalyzed Robot Schematics ------------------ M-13 Machinist | -6/Extension | Hacked Fabricated ------------ Adv. Terrain Scan Processor | x2 | -7/Factory | Preloaded Repaired ---------- Lgt. Assault Rifle | 5% | -9/Materials Lgt. Treads | 1% | -9/Materials Hvy. Missile Launcher | 23% | -7/Factory Studied --------- Flight Unit | -9/Materials | Hacked Wheel | -7/Factory | Hacked Gauss Rifle | -7/Factory | Hacked Alien Tech Used ----------------- None Achievements -------------- Hackathon Zeroed Repercussions Challenges ------------ None Game ------ Seed InterdictionPietyTendrils Manual? 0 Play Time 04:19:38 Cumulative 316.0 hours Start 2026.07.08 @ 09:52:55 End 2026.07.11 @ 12:45:31 Sessions 41 Manual Loads 0 Difficulty Rogue Special Mode None Game No. 126 Rogue 121 Adventurer 5 Explorer 0 Win Type - Total 8 Types 4/0/2/1/0/0/0/0/0/1 Lore% 74 Gallery% 71 Achievement% 66 Wizard Run 0 Options --------- Layout 0 ASCII 0 Keyboard 0 Movement Numpad Keybinds 0 Fullscreen 1 Font 18/SmallcapsGlow Map View 76x50 Zoom Use 0% Tactical HUD 1 Map Filters NONE Filters NONE Steam 1 RUN: e5bfdd93-030f-43e8-88fb-968fa8ee77ee